Cogmind - Beta 14 --- EXPLORER MODE // 2024.11.14 @ 16:52:03 Player: Takao Tuesday Result: Self-destructed Performance ------------- Evolutions (1) 500 Regions Visited (2) 400 Robots Destroyed (45) 225 Value Destroyed (1209) 1209 Prototype IDs (3) 60 Alien Tech Used (0) 0 Bonus (0) 0 TOTAL SCORE: 2394 Bonus ------- None Cogmind --------- Core Integrity 293/400 Matter 278/300 Energy 430/430 System Corruption 0% Temperature Cool (0) Movement Walking (340) Ox3 Location -9/Materials Parts ------- > --- POWER (2) -------- Improved Ion Engine Improved Ion Engine > --- PROPULSION (2) --- Titanium Leg Titanium Leg > --- UTILITY (4) ------ Huge Storage Unit Improved Sensor Array Hardened Medium Armor Plating Hacking Suite > --- WEAPON (2) ------- Light Cannon Light Cannon > --- INVENTORY (25) --- Improved Ion Engine Light Treads Light Treads Titanium Leg Titanium Leg Wheel Wheel Compact Wheel Improved Heat Sink Sensor Array Improved Sensor Array Improved Signal Interpreter Hardened Medium Armor Plating Tractor Beam Field Recycling Unit (0) EM Pulse Gun Assault Rifle Light Cannon Rocket Launcher Datajack Datajack Flail Mining Claw Peak State ------------ > --- POWER ------------ Improved Ion Engine Improved Ion Engine > --- PROPULSION ------- Titanium Leg Titanium Leg > --- UTILITY ---------- Huge Storage Unit Improved Sensor Array Hardened Medium Armor Plating Hacking Suite > --- WEAPON ----------- Light Cannon Light Cannon > --- INVENTORY -------- Ion Engine Ion Engine Improved Ion Engine Light Treads Light Treads Titanium Leg Titanium Leg Wheel Wheel Compact Wheel Improved Heat Sink Sensor Array Improved Sensor Array Improved Signal Interpreter Hardened Medium Armor Plating Tractor Beam Field Recycling Unit EM Pulse Gun Assault Rifle Light Cannon Rocket Launcher Datajack Datajack Flail Mining Claw [Rating: 26] Favorites ----------- Power Ion Engine Engine Ion Engine Propulsion Titanium Leg Treads Light Treads Leg Titanium Leg Wheel Wheel Utility Huge Storage Unit Device Tractor Beam Storage Huge Storage Unit Hackware Hacking Suite Protection Light Armor Plating Weapon Light Cannon Energy Gun EM Pulse Gun Ballistic Gun Assault Rifle Ballistic Cannon Light Cannon Impact Weapon Flail Build | -11 -10 -9 ------- Run | Yrd Mat Mat Slots Evolved 3 | . 1 2 Power 1 | . . 1 Propulsion . | . . . Utility 2 | . 1 1 Weapon . | . . . Parts Attached 42 | 7 15 20 Power 7 | 1 1 5 Engine 7 | 1 1 5 Core . | . . . Reactor . | . . . Propulsion 8 | 2 3 3 Treads 2 | 2 . . Leg 2 | . . 2 Wheel 4 | . 3 1 Hover . | . . . Flight . | . . . Utility 13 | 2 4 7 Device 5 | . 2 3 Storage 2 | 1 1 . Processor . | . . . Hackware 1 | . . 1 Protection 5 | 1 1 3 Artifact . | . . . Weapon 14 | 2 7 5 Energy Gun 3 | 1 1 1 Energy Cannon . | . . . Ballistic Gun 2 | 1 1 . Ballistic Cannon 7 | . 5 2 Launcher . | . . . Special Weapon . | . . . Impact Weapon 2 | . . 2 Slashing Weapon . | . . . Piercing Weapon . | . . . Special Melee Weapon . | . . . Unidentified Prototypes . | . . . Parts Lost 2 | . . 2 Power . | . . . Propulsion 1 | . . 1 Utility . | . . . Weapon 1 | . . 1 Highest Loss Streak 1 | . . 1 To Critical Strikes . | . . . Average Slot Usage (%) 97 | . 95 98 Engine 17 | . 12 20 Treads 1 | . 4 . Leg 10 | . . 15 Wheel 8 | . 19 3 Device 14 | . 15 14 Storage 10 | . 12 10 Hackware 3 | . . 5 Protection 8 | . 6 9 Energy Gun 1 | . 5 . Ballistic Gun 2 | . 7 . Ballistic Cannon 15 | . 10 17 Impact Weapon 1 | . . 2 Peak Build Rating 26 | 7 8 26 Average Rating 15 | 3 7 18 On Entrance 5 | . 7 8 Naked Turns . | . . . Heaviest Build 109 | 20 101 109 Greatest Support 40 | 40 40 34 Greatest Overweight (x) 10 | 3 9 10 Average Overweight (x) 3 | 1 3 4 Largest Inventory Capacity 25 | 10 25 25 Average Capacity 23 | 9 22 25 Most Carried 25 | 4 9 25 Average Carried 12 | . 4 16 Final Capacity 25 | 10 25 25 Final Carried 23 | . 9 23 Class Distribution -------------------- 100% | Hacker-Mutant Dominant Class ---------------- Hacker-Mutant | -10/Materials Hacker-Mutant | -9/Materials Resources | -11 -10 -9 ----------- Run | Yrd Mat Mat Matter Collected 1327 | 243 290 794 Remotely 682 | . 290 392 Salvage Created 1029 | . 191 838 Parts 90 | . 18 72 Haulers Intercepted . | . . . Recyclers Shooed 2 | . . 2 Parts Field Recycled . | . . . Retrieved Matter . | . . . Parts Self-Destructed . | . . . Prevented . | . . . Kills | -11 -10 -9 ------- Run | Yrd Mat Mat Combat Hostiles Destroyed 34 | . 7 27 Melee 1 | . . 1 Guns 4 | . 3 1 Cannons 29 | . 4 25 Classes Destroyed 7 | . 4 3 Worker 1 | . 1 . Operator 3 | . . 3 Watcher 7 | . 2 5 Swarmer 12 | . 5 7 Grunt 12 | . 2 10 Brawler 1 | . . 1 Sentry 9 | . . 9 Best Kill Streak 4 | . 4 4 Combat Bots Only 4 | . 4 4 Max Kills in Single Turn 1 | . 1 1 Gunslinging . | . . . Exploded . | . . . Melee 1 | . . 1 Uniques/NPCs Destroyed . | . . . Combat | -11 -10 -9 -------- Run | Yrd Mat Mat Hostile Shots Fired 187 | . 45 142 Missed 52 | . 12 40 Damage Taken 1017 | . 201 816 Core 127 | . 20 107 Absorbed by Shields . | . . . Ignored by Resistances 643 | . 132 511 Regen/Repaired (Parts) 17 | . . 17 Core Remaining (%) 96 | 100 92 . Volleys Fired 112 | . 22 90 Largest 2 | . 2 2 Hottest 75 | . 75 75 Shots Fired 195 | . 42 153 Gun 27 | . 21 6 Cannon 168 | . 21 147 Launcher . | . . . Special . | . . . Kinetic 187 | . 40 147 Thermal . | . . . Explosive . | . . . Electromagnetic 8 | . 2 6 Robot Hit Streak 24 | . 16 24 Robot Miss Streak 2 | . 2 2 Penetration Max . | . . . Secondary Targets . | . . . Shots Hit Robots 142 | . 28 114 Core Hits 59 | . 13 46 Critical Kills 1 | . . 1 Critical Parts Destroyed 1 | . . 1 Critical Strikes 7 | . . 7 Blast 5 | . . 5 Smash 2 | . . 2 Melee Attacks 3 | . . 3 Impact 3 | . . 3 Slashing . | . . . Piercing . | . . . Sneak Attacks . | . . . Combat Hostiles . | . . . Follow-up Attacks . | . . . Damage Inflicted 2565 | . 474 2091 Guns 248 | . 204 44 Cannons 2214 | . 270 1944 Explosions . | . . . Melee 95 | . . 95 Ramming 8 | . . 8 Kinetic 2385 | . 441 1944 Thermal . | . . . Explosive . | . . . Electromagnetic 77 | . 33 44 Impact 95 | . . 95 Slashing . | . . . Piercing . | . . . Highest Corruption 1 | . 1 . Average Corruption 1 | . 1 . Corruption Purged . | . . . Corruption Blocked . | . . . Effects 9 | . 9 . Message Errors 3 | . 3 . Matter Fused 1 | . 1 . Heat Flow Errors 1 | . 1 . Energy Discharges 1 | . 1 . Data Loss (minor) 2 | . 2 . Data Loss (major) 1 | . 1 . Overload Shots . | . . . Overflow Damage 47 | . 7 40 Projectiles 21 | . 7 14 Explosions . | . . . Melee 26 | . . 26 Knockbacks 24 | . 5 19 Impact 1 | . . 1 Kinetic 20 | . 5 15 Secondary 3 | . . 3 Self-Inflicted Damage 4 | . . 4 Shots . | . . . Rammed 1 | . . 1 Targets Rammed 1 | . . 1 Kicked . | . . . Crushed . | . . . Highest Temperature 271 | . 117 271 Average Temperature 46 | . 26 50 Received Heat Transfer 549 | . 84 465 Effects 1 | . . 1 Energy Bleed 1 | . . 1 Siege Activations . | . . . Robots Corrupted . | . . . Combat Hostiles . | . . . Parts Fried 1 | . . 1 Impact Corruptions 1 | . . 1 Robots Melted . | . . . Combat Hostiles . | . . . Parts Melted . | . . . Heat Transferred . | . . . Parts Sabotaged . | . . . Parts Stolen . | . . . Parts Stripped . | . . . Power Chain Reactions . | . . . Alert | -11 -10 -9 ------- Run | Yrd Mat Mat Peak Influence 343 | . 155 343 Initial 9 | . . 9 Average 55 | . 29 68 Maximum Alert Level 1 | . . 1 Low Security (%) 96 | 100 100 95 Level 1 3 | . . 4 Level 2 . | . . . Level 3 . | . . . Level 4 . | . . . Level 5 . | . . . High Security . | . . . Max Security . | . . . Squads Dispatched 2 | . . 2 Investigation . | . . . Extermination . | . . . Reinforcement 2 | . . 2 Assault . | . . . Garrison . | . . . Intercept . | . . . Searches Triggered . | . . . Construction Impeded . | . . . Haulers Reinforced . | . . . Active Scanning Responses . | . . . Cargo Convoy Interrupts . | . . . Stealth | -11 -10 -9 --------- Run | Yrd Mat Mat Distress Signals 2 | . . 2 Communications Jammed . | . . . Distress Signals . | . . . Times Spotted 49 | . 9 40 Peak Tracking Total 4 | . 4 3 Tactical Retreats 3 | . 1 2 Traps | -11 -10 -9 ------- Run | Yrd Mat Mat Traps Triggered 4 | . 3 1 Indirectly . | . . . Trap Hack Attempts . | . . . Triggered . | . . . Disarmed . | . . . Reprogrammed 17 | . 17 . Reused 2 | . 2 . Traps Extracted . | . . . Installed . | . . . Triggered 2 | . 2 . Machines | -11 -10 -9 ---------- Run | Yrd Mat Mat Machines Disabled 4 | . . 4 Max in Single Turn 1 | . . 1 Machines Repaired . | . . . Machines Dismantled . | . . . Machines Sabotaged . | . . . Overloaded Fab Kills . | . . . Hacking | -11 -10 -9 --------- Run | Yrd Mat Mat Machines Accessed 22 | . 10 12 Terminals 15 | . 8 7 Fabricators . | . . . Repair Stations 2 | . . 2 Recycling Units 4 | . 2 2 Scanalyzers 1 | . . 1 Garrison Access . | . . . Total Hacks 48 | . 18 30 Successful 36 | . 17 19 Failed 12 | . 1 11 Catastrophic . | . . . Database Lockouts . | . . . Manual . | . . . Terminals 33 | . 16 17 Fabricators . | . . . Repair Stations 6 | . . 6 Recycling Units 7 | . 2 5 Scanalyzers 2 | . . 2 Garrison Access . | . . . Terminal Hacks 26 | . 15 11 Record 3 | . . 3 Robot Analysis 2 | . . 2 Prototype ID Bank 3 | . 2 1 Locate Traps 4 | . 3 1 Reprogram Traps 5 | . 5 . Maintenance Status 1 | . 1 . Transport Status 1 | . . 1 Registered Components 2 | . 1 1 Zone Layout 5 | . 3 2 Fabricator Hacks . | . . . Repair Station Hacks 4 | . . 4 Scan Component 2 | . . 2 Repair 2 | . . 2 Recycling Unit Hacks 4 | . 2 2 Report Inventory 4 | . 2 2 Scanalyzer 2 | . . 2 Insert Component 1 | . . 1 Analyze 1 | . . 1 Garrison Access Hacks . | . . . Unauthorized Hacks . | . . . Terminals . | . . . Fabricators . | . . . Repair Stations . | . . . Recycling Units . | . . . Scanalyzers . | . . . Garrison Access . | . . . Data Cores Recovered 2 | . . 2 Used . | . . . Hacking Detections 5 | . 2 3 Full Trace Events . | . . . Feedback Events . | . . . Feedback Blocked . | . . . Robot Schematics Acquired . | . . . Robots Built . | . . . Authchips . | . . . Time . | . . . Total Robot Build Rating . | . . . Part Schematics Acquired 1 | . . 1 Parts Built . | . . . Authchips . | . . . Time . | . . . Total Part Build Rating . | . . . Parts Repaired 2 | . . 2 Time 64 | . . 64 Parts Recycled . | . . . Recycled Matter . | . . . Retrieved Matter . | . . . Retrieved Components . | . . . Parts Scanalyzed 1 | . . 1 Part Schematics Acquired 1 | . . 1 Parts Damaged . | . . . Bothacking | -11 -10 -9 ------------ Run | Yrd Mat Mat Used RIF Installer . | . . . Robots Hacked . | . . . Non-combat . | . . . Combat . | . . . Robot Hacks Applied . | . . . Relay Couplers Released . | . . . Fabnet Peak Effective % . | . . . Robots Rewired . | . . . Allies Hacked . | . . . Hacks Repelled . | . . . Allies | -11 -10 -9 -------- Run | Yrd Mat Mat Total Allies . | . . . Largest Group . | . . . Highest-Rated Group . | . . . Highest-Rated Ally . | . . . Total Orders . | . . . Ally Attacks . | . . . Total Damage . | . . . Kills . | . . . Allies Corrupted . | . . . Allies Melted . | . . . Intel | -11 -10 -9 ------- Run | Yrd Mat Mat Robot Analysis Total 2 | . . 2 Derelict Logs Recovered . | . . . Drone Launches . | . . . Drone Recoveries . | . . . Exploration | -11 -10 -9 ------------- Run | Yrd Mat Mat Turns Passed 4612 | 83 1355 3174 Spaces Moved 1831 | 41 789 1001 Core 19 | 19 . . Treads 149 | 22 127 . Legs 663 | . . 663 Wheels 1000 | . 662 338 Hover . | . . . Flight . | . . . Fastest Speed 50 | 50 95 155 Average Speed 219 | 171 146 280 Slowest Speed 340 | 200 215 340 Overloaded Moves . | . . . Propulsion Burnouts . | . . . Robots Hopped . | . . . Cave-ins Triggered . | . . . Exploration Rate (%) 62 | 4 99 84 Regions Visited 2 Branch Regions . Pre-discovered Areas . | . . . Known Exits Taken 2 | 1 1 . Unknown Exits Taken . | . . . Scrap Searched . | . . . Spaces Dug . | . . . Terrain Destroyed . | . . . Melee . | . . . Projectile . | . . . AOE . | . . . Terrain Rammed . | . . . Walls Destroyed . | . . . Machines Disabled . | . . . Actions | -11 -10 -9 --------- Run | Yrd Mat Mat Total 2204 | 53 944 1207 Wait 174 | . 105 69 Move 1829 | 40 788 1001 Hop . | . . . Pick Up 35 | 6 12 17 Fast Attach 5 | 1 2 2 Attach 12 | 6 3 3 Detach . | . . . Swap 25 | . 10 15 Drop 8 | . 2 6 Fire 112 | . 22 90 Melee 3 | . . 3 Ram 1 | . . 1 Kick . | . . . Crush . | . . . Escape Stasis . | . . . Rewire . | . . . Trap . | . . . Miscellaneous . | . . . Route ------- -11/Scrapyard -10/Materials (discovered 5 exits: *Mat x3 / *Min x2) -9/Materials (discovered 4 exits: *Mat x3 / *Min) History --------- Turn | Location | Event 25 | -11/Scrapyard | Identified exit to Materials 25 | -11/Scrapyard | Discovered exit to Materials (range 15) 84 | -11/Scrapyard | Entered Materials 84 | -10/Materials | Evolved 1 slot: Utility x1 252 | -10/Materials | Identified exit to Mines 252 | -10/Materials | Discovered exit to Mines (range 11) 309 | -10/Materials | Build established: Hacker-Mutant 621 | -10/Materials | Identified exit to Materials 621 | -10/Materials | Discovered exit to Materials (range 12) 924 | -10/Materials | Discovered exit to Mines (range 12) 1129 | -10/Materials | Discovered exit to Materials (range 5) 1263 | -10/Materials | Discovered exit to Materials (range 15) 1439 | -10/Materials | Entered another Materials area 1439 | -9/Materials | Evolved 2 slots: Power x1, Utility x1 2003 | -9/Materials | Identified exit to Materials 2003 | -9/Materials | Discovered exit to Materials (range 4) 2756 | -9/Materials | Discovered exit to Materials (range 21) 3618 | -9/Materials | Identified exit to Mines 3618 | -9/Materials | Discovered exit to Mines (range 11) 4033 | -9/Materials | Discovered exit to Materials (range 16) 4488 | -9/Materials | Repaired Wheel 4526 | -9/Materials | Repaired Imp. Sensor Array 4613 | -9/Materials | Self-destructed Last Messages --------------- Rating: 1 Time: 26 >>Repair Repairing Wheel... ETC: 26 >>Scan(Imp. Sensor Array) Scanning Imp. Sensor Array... Ready to Repair: Imp. Sensor Array Rating: 3 Time: 38 Repair station completes Wheel repairs. >>Repair Cancelling repair: Wheel. Repairing Imp. Sensor Array... ETC: 38 Acquired Wheel. Repair station completes Imp. Sensor Array repairs. Acquired Imp. Sensor Array. Map ----- +----------------------------------------------------+ | | | | | | | | | | | | | | | | | | | | | | | | | | | ?????????????????????????????????##??????????????? | | ????????????????######??######### #??????????????? | | ????????????????# #??# * #??????????????? | | ????????????????# #??# * #??????????????? | | ????????????????# #??# ! * ########???????? | | ????????????????# #### ="" """ # #???????? | | ??? < #?????????# # + """ """ # #???????? | | ??# #?????????# # # """ """ # ? #???????? | | ??+ +?????????# + # # " " #???????? | | ??# #?????????# # # # "R" #???????? | | ??# #?############## ########+## """ #???????? | | ??# ## #??# ##### ##/#####???????? | | ??# ## #??# @ #?????????? | | ??# ## """ """ #??# #?????????? | | ??# ## """ """ #??# ##### ##+###?????????? | | ??# ## """ """ #??## ##???###### #??????????? | | ### ## #???# #?????????# #??????????? | | ## ## #???# #?????????#! #??????????? | | ## ## #???# #?????????# #??????????? | | # #####+######### ##????????# !!#??????????? | | # % #????????# !!#??????????? | | + [ %! ? #????????# #??????????? | | #[ % #????????#####??????????? | | #!! ##### ######## #???????????????????????? | | # #####?? ?######+####??????????????????????? | | ## #????# # #??????????????????????? | | ?# #????# # "" #??????????????????????? | | ?# #????# # "T """ #??????????????????????? | | ?# #????### # "" """ #??????????????????????? | | ?# #??????# ### """ #??????????????????????? | | ?# #??????# ##?# #??????????????????????? | | ?# #??????###???# #??????????????????????? | | ?# #????????????# #??????????????????????? | | ?# #???????????############??????????????????????? | | ?# #???????????# % #??????????????????????? | | ?# #????????????#%%! """ #??????????????????????? | | ?# #????????????#!%== "Y" #??????????????????????? | +----------------------------------------------------+ Best States ------------- Heat Dissipation 28 Energy Generation 19 Energy Capacity 430 Matter Stores 300 Matter Capacity 300 Sight Range 16 Robot Scan Range 15 Terrain Scan Density 10 Armor Coverage 225 Resistance: KI 35 Resistance: TH 35 Resistance: EX 35 Resistance: EM 35 Resistance: I 35 Resistance: S 35 Resistance: P 35 Evasion (%) 40 Recoil Reduction 2 Offensive Hacking 30 Item Schematics ----------------- Wheel | -9/Materials | Scanalyzed Robot Schematics ------------------ None Fabricated ------------ Nothing Alien Tech Used ----------------- None Achievements -------------- None Challenges ------------ None Game ------ Seed RingHypervelocityCutter Manual? 0 Play Time 00:30:04 Cumulative 8.0 hours Start 2024.11.14 @ 14:27:15 End 2024.11.14 @ 16:52:03 Sessions 4 Manual Loads 0 Difficulty Explorer Special Mode None Game No. 11 Rogue 0 Adventurer 0 Explorer 11 Win Type - Total 0 Types 0/0/0/0/0/0/0/0/0 Lore% 3 Gallery% 13 Achievement% 13 Wizard Run 0 Options --------- Layout 1 ASCII 0 Keyboard 0 Movement Mouse Keybinds 0 Fullscreen 1 Font 24/Smallcaps Map View 50x35 Zoom Use 0% Tactical HUD 0 Map Filters NONE Filters NONE Steam 1 RUN: 8f315ebb-7e39-475b-9ce2-818dcebadb12